[Event "Titled Tuesday Blitz August 16 Early 2022"]
[White "Fier, Alexandr"]
[Black "Janaszak, Dawid"]
[WhiteFideId "2107139"]
[BlackFideId "1119206"]
[WhiteElo "2598"]
[BlackElo "2165"]
[Result "0-1"]
[Round "09"]
[TimeControl "180+1"]
[Date "2022.08.16"]
[WhiteClock "0:01:48"]
[BlackClock "0:00:47"]

1. d4 {[%clk 0:02:56]}  Nf6 {[%clk 0:02:59]} 2. Bg5 {[%clk 0:02:55]}  d5 {[%clk 0:02:57]} 3. Bxf6 {[%clk 0:02:55]}  gxf6 {[%clk 0:02:56]} 4. c4 {[%clk 0:02:55]}  dxc4 {[%clk 0:02:53]} 5. e3 {[%clk 0:02:56]}  c5 {[%clk 0:02:51]} 6. Bxc4 {[%clk 0:02:55]}  cxd4 {[%clk 0:02:50]} 7. Nc3 {[%clk 0:02:56]}  Nc6 {[%clk 0:02:44]} 8. Qh5 {[%clk 0:02:56]}  e6 {[%clk 0:02:42]} 9. Rd1 {[%clk 0:02:56]}  Qa5 {[%clk 0:02:34]} 10. Qxa5 {[%clk 0:02:51]}  Nxa5 {[%clk 0:02:35]} 11. Bb5+ {[%clk 0:02:52]}  Nc6 {[%clk 0:02:34]} 12. Rxd4 {[%clk 0:02:47]}  Rg8 {[%clk 0:02:27]} 13. Nge2 {[%clk 0:02:41]}  Bd7 {[%clk 0:02:27]} 14. Rh4 {[%clk 0:02:40]}  O-O-O {[%clk 0:02:21]} 15. O-O {[%clk 0:02:34]}  Ne5 {[%clk 0:02:11]} 16. Bxd7+ {[%clk 0:02:33]}  Rxd7 {[%clk 0:02:12]} 17. Ng3 {[%clk 0:02:33]}  h6 {[%clk 0:02:00]} 18. Nce4 {[%clk 0:02:29]}  Be7 {[%clk 0:01:45]} 19. Rxh6 {[%clk 0:02:27]}  f5 {[%clk 0:01:37]} 20. Nc3 {[%clk 0:02:26]}  Rd2 {[%clk 0:01:21]} 21. Rh7 {[%clk 0:02:01]}  Rxb2 {[%clk 0:01:11]} 22. f4 {[%clk 0:02:01]}  Ng4 {[%clk 0:01:10]} 23. Rxf7 {[%clk 0:02:00]}  Bc5 {[%clk 0:01:06]} 24. Nd1 {[%clk 0:01:55]}  Rxa2 {[%clk 0:00:58]} 25. Re1 {[%clk 0:01:55]}  Rd8 {[%clk 0:00:51]} 26. Nf1 {[%clk 0:01:54]}  Ra1 {[%clk 0:00:46]} 27. h3 {[%clk 0:01:48]}  Rdxd1 {[%clk 0:00:46]} 28. Rxd1 {[%clk 0:01:48]}  Rxd1 {[%clk 0:00:47]} 29. hxg4 {[%clk 0:01:48]}  Bxe3+ {[%clk 0:00:47]} 30. Kh2 {[%clk 0:01:48]}  Rxf1 {[%clk 0:00:47]} 0-1


[Site "https://www.chess.com"]

[Event "Titled Tuesday Blitz August 16 Early 2022"]
[White "Grandelius, Nils"]
[Black "Shuvalova, Polina"]
[WhiteFideId "1710400"]
[BlackFideId "24171760"]
[WhiteElo "2617"]
[BlackElo "2330"]
[Result "1-0"]
[Round "09"]
[TimeControl "180+1"]
[Date "2022.08.16"]
[WhiteClock "0:00:30"]
[BlackClock "0:00:30"]

1. Nf3 {[%clk 0:03:00]}  Nf6 {[%clk 0:02:59]} 2. g3 {[%clk 0:03:01]}  d5 {[%clk 0:02:59]} 3. Bg2 {[%clk 0:03:00]}  e6 {[%clk 0:02:54]} 4. O-O {[%clk 0:03:00]}  Be7 {[%clk 0:02:50]} 5. c4 {[%clk 0:03:00]}  O-O {[%clk 0:02:49]} 6. b3 {[%clk 0:03:01]}  b6 {[%clk 0:02:46]} 7. cxd5 {[%clk 0:02:53]}  Nxd5 {[%clk 0:02:43]} 8. e4 {[%clk 0:02:42]}  Nf6 {[%clk 0:02:40]} 9. Nc3 {[%clk 0:02:41]}  Bb7 {[%clk 0:02:39]} 10. Re1 {[%clk 0:02:40]}  c5 {[%clk 0:02:37]} 11. d4 {[%clk 0:02:37]}  cxd4 {[%clk 0:02:35]} 12. Nxd4 {[%clk 0:02:38]}  Nc6 {[%clk 0:02:25]} 13. e5 {[%clk 0:02:34]}  Nd5 {[%clk 0:01:40]} 14. Nxd5 {[%clk 0:02:32]}  exd5 {[%clk 0:01:35]} 15. Nf5 {[%clk 0:02:30]}  Bb4 {[%clk 0:01:26]} 16. Qg4 {[%clk 0:02:15]}  g6 {[%clk 0:01:24]} 17. Nh6+ {[%clk 0:01:51]}  Kh8 {[%clk 0:01:22]} 18. Bg5 {[%clk 0:01:50]}  Be7 {[%clk 0:01:21]} 19. h4 {[%clk 0:01:50]}  Bc8 {[%clk 0:01:09]} 20. Qf4 {[%clk 0:01:34]}  Be6 {[%clk 0:01:09]} 21. Rad1 {[%clk 0:01:31]}  Rc8 {[%clk 0:01:03]} 22. Bxd5 {[%clk 0:01:20]}  Bxd5 {[%clk 0:00:54]} 23. Rxd5 {[%clk 0:01:19]}  Bxg5 {[%clk 0:00:54]} 24. hxg5 {[%clk 0:01:16]}  Qe7 {[%clk 0:00:51]} 25. Rd7 {[%clk 0:01:15]}  Qe6 {[%clk 0:00:45]} 26. Rxf7 {[%clk 0:00:55]}  Rxf7 {[%clk 0:00:45]} 27. Nxf7+ {[%clk 0:00:55]}  Kg7 {[%clk 0:00:45]} 28. Nd6 {[%clk 0:00:52]}  Rf8 {[%clk 0:00:45]} 29. Qf6+ {[%clk 0:00:47]}  Qxf6 {[%clk 0:00:33]} 30. exf6+ {[%clk 0:00:48]}  Kg8 {[%clk 0:00:33]} 31. f4 {[%clk 0:00:31]}  Rd8 {[%clk 0:00:31]} 32. f7+ {[%clk 0:00:29]}  Kg7 {[%clk 0:00:30]} 33. Re8 {[%clk 0:00:30]} 1-0


[Site "https://www.chess.com"]

[Event "Titled Tuesday Blitz August 16 Early 2022"]
[White "Hansen, Eric"]
[Black "Andreikin, Dmitry"]
[WhiteFideId "2606771"]
[BlackFideId "4158814"]
[WhiteElo "2568"]
[BlackElo "2736"]
[Result "1-0"]
[Round "09"]
[TimeControl "180+1"]
[Date "2022.08.16"]
[WhiteClock "0:01:05"]
[BlackClock "0:00:09"]

1. e4 {[%clk 0:02:59]}  c5 {[%clk 0:03:00]} 2. Nf3 {[%clk 0:02:58]}  e6 {[%clk 0:03:00]} 3. d4 {[%clk 0:02:58]}  cxd4 {[%clk 0:03:00]} 4. Nxd4 {[%clk 0:02:58]}  Nc6 {[%clk 0:03:00]} 5. Nc3 {[%clk 0:02:59]}  a6 {[%clk 0:03:00]} 6. Nxc6 {[%clk 0:02:57]}  bxc6 {[%clk 0:03:01]} 7. Bd3 {[%clk 0:02:58]}  d5 {[%clk 0:03:01]} 8. O-O {[%clk 0:02:58]}  Nf6 {[%clk 0:03:02]} 9. Re1 {[%clk 0:02:50]}  Bb7 {[%clk 0:03:01]} 10. Qf3 {[%clk 0:02:45]}  Be7 {[%clk 0:02:59]} 11. Qg3 {[%clk 0:02:44]}  O-O {[%clk 0:02:58]} 12. Bd2 {[%clk 0:02:38]}  d4 {[%clk 0:02:43]} 13. Na4 {[%clk 0:02:34]}  c5 {[%clk 0:02:43]} 14. b3 {[%clk 0:02:34]}  Nd7 {[%clk 0:02:34]} 15. e5 {[%clk 0:02:31]}  g6 {[%clk 0:02:12]} 16. Rad1 {[%clk 0:02:31]}  Qc7 {[%clk 0:02:10]} 17. h4 {[%clk 0:02:29]}  Kh8 {[%clk 0:02:07]} 18. Bh6 {[%clk 0:02:23]}  Rg8 {[%clk 0:01:51]} 19. c3 {[%clk 0:02:22]}  Qd8 {[%clk 0:01:47]} 20. cxd4 {[%clk 0:02:10]}  cxd4 {[%clk 0:01:48]} 21. Qf4 {[%clk 0:02:04]}  Bxh4 {[%clk 0:01:43]} 22. Qxf7 {[%clk 0:02:03]}  Qe7 {[%clk 0:01:40]} 23. Qxe7 {[%clk 0:01:51]}  Bxe7 {[%clk 0:01:41]} 24. Bc4 {[%clk 0:01:51]}  Bb4 {[%clk 0:01:09]} 25. Re2 {[%clk 0:01:44]}  Nc5 {[%clk 0:00:47]} 26. Nxc5 {[%clk 0:01:43]}  Bxc5 {[%clk 0:00:48]} 27. Bxe6 {[%clk 0:01:43]}  Rge8 {[%clk 0:00:48]} 28. Bd7 {[%clk 0:01:32]}  Re7 {[%clk 0:00:34]} 29. e6 {[%clk 0:01:33]}  a5 {[%clk 0:00:23]} 30. Bg5 {[%clk 0:01:29]}  Kg7 {[%clk 0:00:23]} 31. Rc2 {[%clk 0:01:27]}  Ba3 {[%clk 0:00:18]} 32. Rxd4 {[%clk 0:01:22]}  Rf8 {[%clk 0:00:16]} 33. Rc7 {[%clk 0:01:16]}  Ba6 {[%clk 0:00:09]} 34. Bxe7 {[%clk 0:01:09]}  Bxe7 {[%clk 0:00:10]} 35. Ba4 {[%clk 0:01:04]}  Kf6 {[%clk 0:00:09]} 36. Rf4+ {[%clk 0:01:05]}  Ke5 {[%clk 0:00:09]} 37. Rxf8 {[%clk 0:01:05]} 1-0


[Site "https://www.chess.com"]

[Event "Titled Tuesday Blitz August 16 Early 2022"]
[White "Harsh Suresh"]
[Black "Omelja, Artem"]
[WhiteFideId "45018464"]
[BlackFideId "14119846"]
[WhiteElo "2070"]
[BlackElo "2382"]
[Result "1/2-1/2"]
[Round "09"]
[TimeControl "180+2"]
[Date "2022.08.18"]
[WhiteClock "0:00:00"]
[BlackClock "0:00:00"]

1. e4 {[%clk 0:00:00]}  c5 {[%clk 0:00:00]} 2. Nc3 {[%clk 0:00:00]}  Nc6 {[%clk 0:00:00]} 3. Bb5 {[%clk 0:00:00]}  Nd4 {[%clk 0:00:00]} 4. Bc4 {[%clk 0:00:00]}  e6 {[%clk 0:00:00]} 5. Nf3 {[%clk 0:00:00]}  Ne7 {[%clk 0:00:00]} 6. O-O {[%clk 0:00:00]}  Nec6 {[%clk 0:00:00]} 7. d3 {[%clk 0:00:00]}  Qc7 {[%clk 0:00:00]} 8. Nxd4 {[%clk 0:00:00]}  Nxd4 {[%clk 0:00:00]} 9. a4 {[%clk 0:00:00]}  b6 {[%clk 0:00:00]} 10. Nb5 {[%clk 0:00:00]}  Nxb5 {[%clk 0:00:00]} 11. axb5 {[%clk 0:00:00]}  Bb7 {[%clk 0:00:00]} 12. Qg4 {[%clk 0:00:00]}  g6 {[%clk 0:00:00]} 13. Bf4 {[%clk 0:00:00]}  d6 {[%clk 0:00:00]} 14. Ra2 {[%clk 0:00:00]}  Bg7 {[%clk 0:00:00]} 15. Rfa1 {[%clk 0:00:00]}  Bc8 {[%clk 0:00:00]} 16. Qg3 {[%clk 0:00:00]}  e5 {[%clk 0:00:00]} 17. Be3 {[%clk 0:00:00]}  O-O {[%clk 0:00:00]} 18. Bd5 {[%clk 0:00:00]}  Be6 {[%clk 0:00:00]} 19. Bxa8 {[%clk 0:00:00]}  Bxa2 {[%clk 0:00:00]} 20. Rxa2 {[%clk 0:00:00]}  Rxa8 {[%clk 0:00:00]} 21. Qf3 {[%clk 0:00:00]}  Rf8 {[%clk 0:00:00]} 22. c4 {[%clk 0:00:00]}  h6 {[%clk 0:00:00]} 23. h4 {[%clk 0:00:00]}  Kh7 {[%clk 0:00:00]} 24. h5 {[%clk 0:00:00]}  Qd7 {[%clk 0:00:00]} 25. hxg6+ {[%clk 0:00:00]}  fxg6 {[%clk 0:00:00]} 26. Qh3 {[%clk 0:00:00]}  Qxh3 {[%clk 0:00:00]} 27. gxh3 {[%clk 0:00:00]}  Rf7 {[%clk 0:00:00]} 28. Kg2 {[%clk 0:00:00]}  g5 {[%clk 0:00:00]} 29. Kg3 {[%clk 0:00:00]}  Kg6 {[%clk 0:00:00]} 30. Ra1 {[%clk 0:00:00]}  Bf8 {[%clk 0:00:00]} 31. h4 {[%clk 0:00:00]}  gxh4+ {[%clk 0:00:00]} 32. Kxh4 {[%clk 0:00:00]}  Be7+ {[%clk 0:00:00]} 33. Kg3 {[%clk 0:00:00]}  Bg5 {[%clk 0:00:00]} 34. Bxg5 {[%clk 0:00:00]}  Kxg5 {[%clk 0:00:00]} 35. Rh1 {[%clk 0:00:00]}  h5 {[%clk 0:00:00]} 36. f3 {[%clk 0:00:00]}  Rh7 {[%clk 0:00:00]} 37. Rg1 {[%clk 0:00:00]}  Rf7 {[%clk 0:00:00]} 38. Rh1 {[%clk 0:00:00]} 1/2-1/2


[Site "https://www.chess.com"]

[Event "Titled Tuesday Blitz August 16 Early 2022"]
[White "Harshavardhan G B"]
[Black "Ezat, Mohamed"]
[WhiteFideId "25059009"]
[BlackFideId "10600906"]
[WhiteElo "1890"]
[BlackElo "2386"]
[Result "1-0"]
[Round "09"]
[TimeControl "180+1"]
[Date "2022.08.16"]
[WhiteClock "0:00:11"]
[BlackClock "0:00:03"]

1. d4 {[%clk 0:02:58]}  Nf6 {[%clk 0:02:55]} 2. c4 {[%clk 0:02:57]}  g6 {[%clk 0:02:55]} 3. h4 {[%clk 0:02:56]}  Bg7 {[%clk 0:02:55]} 4. Nc3 {[%clk 0:02:56]}  O-O {[%clk 0:02:55]} 5. e4 {[%clk 0:02:56]}  d6 {[%clk 0:02:54]} 6. Be2 {[%clk 0:02:54]}  c5 {[%clk 0:02:52]} 7. d5 {[%clk 0:02:53]}  b5 {[%clk 0:02:52]} 8. cxb5 {[%clk 0:02:52]}  a6 {[%clk 0:02:53]} 9. a4 {[%clk 0:02:50]}  Qa5 {[%clk 0:02:50]} 10. Bd2 {[%clk 0:02:45]}  axb5 {[%clk 0:02:50]} 11. Bxb5 {[%clk 0:02:45]}  Ba6 {[%clk 0:02:49]} 12. Ra3 {[%clk 0:02:44]}  Nbd7 {[%clk 0:02:47]} 13. Nge2 {[%clk 0:02:39]}  Ne5 {[%clk 0:02:39]} 14. O-O {[%clk 0:02:37]}  Nc4 {[%clk 0:02:33]} 15. Rb3 {[%clk 0:02:15]}  Rfb8 {[%clk 0:02:20]} 16. Be1 {[%clk 0:02:05]}  Bxb5 {[%clk 0:02:12]} 17. axb5 {[%clk 0:02:01]}  Qc7 {[%clk 0:02:04]} 18. Qc2 {[%clk 0:01:55]}  Qd7 {[%clk 0:02:02]} 19. Ng3 {[%clk 0:01:53]}  Qg4 {[%clk 0:02:00]} 20. Qd3 {[%clk 0:01:36]}  Ne5 {[%clk 0:01:55]} 21. Qe2 {[%clk 0:01:33]}  Qxh4 {[%clk 0:01:55]} 22. f3 {[%clk 0:01:32]}  Nfg4 {[%clk 0:01:51]} 23. fxg4 {[%clk 0:01:24]}  Nxg4 {[%clk 0:01:51]} 24. Rf4 {[%clk 0:00:50]}  Bd4+ {[%clk 0:00:58]} 25. Bf2 {[%clk 0:00:47]}  Ra1+ {[%clk 0:00:47]} 26. Nd1 {[%clk 0:00:40]}  Qh2+ {[%clk 0:00:19]} 27. Kf1 {[%clk 0:00:38]}  Nxf2 {[%clk 0:00:19]} 28. Rxf2 {[%clk 0:00:35]}  h5 {[%clk 0:00:17]} 29. Ke1 {[%clk 0:00:28]}  Bxf2+ {[%clk 0:00:17]} 30. Qxf2 {[%clk 0:00:18]}  c4 {[%clk 0:00:12]} 31. Rb4 {[%clk 0:00:17]}  c3 {[%clk 0:00:09]} 32. bxc3 {[%clk 0:00:18]}  Rba8 {[%clk 0:00:09]} 33. Rb2 {[%clk 0:00:17]}  R8a4 {[%clk 0:00:08]} 34. b6 {[%clk 0:00:16]}  Ra8 {[%clk 0:00:03]} 35. b7 {[%clk 0:00:16]}  Rb8 {[%clk 0:00:03]} 36. c4 {[%clk 0:00:11]} 1-0


[Site "https://www.chess.com"]

[Event "Titled Tuesday Blitz August 16 Early 2022"]
[White "Horak, Martin"]
[Black "Goltseva, Ekaterina"]
[WhiteFideId "367095"]
[BlackFideId "24173770"]
[WhiteElo "1997"]
[BlackElo "2086"]
[Result "0-1"]
[Round "09"]
[TimeControl "180+2"]
[Date "2022.08.18"]
[WhiteClock "0:00:00"]
[BlackClock "0:00:00"]

1. d4 {[%clk 0:00:00]}  d5 {[%clk 0:00:00]} 2. c4 {[%clk 0:00:00]}  dxc4 {[%clk 0:00:00]} 3. Nf3 {[%clk 0:00:00]}  a6 {[%clk 0:00:00]} 4. a4 {[%clk 0:00:00]}  Nc6 {[%clk 0:00:00]} 5. e3 {[%clk 0:00:00]}  Na5 {[%clk 0:00:00]} 6. Nbd2 {[%clk 0:00:00]}  Be6 {[%clk 0:00:00]} 7. Be2 {[%clk 0:00:00]}  b5 {[%clk 0:00:00]} 8. O-O {[%clk 0:00:00]}  Nf6 {[%clk 0:00:00]} 9. Ne5 {[%clk 0:00:00]}  Bd5 {[%clk 0:00:00]} 10. f3 {[%clk 0:00:00]}  Bb7 {[%clk 0:00:00]} 11. Qc2 {[%clk 0:00:00]}  e6 {[%clk 0:00:00]} 12. Ne4 {[%clk 0:00:00]}  Nb3 {[%clk 0:00:00]} 13. Ra2 {[%clk 0:00:00]}  Nxd4 {[%clk 0:00:00]} 14. exd4 {[%clk 0:00:00]}  Qxd4+ {[%clk 0:00:00]} 15. Kh1 {[%clk 0:00:00]}  Qxe5 {[%clk 0:00:00]} 16. Nxf6+ {[%clk 0:00:00]}  Qxf6 {[%clk 0:00:00]} 17. b3 {[%clk 0:00:00]}  cxb3 {[%clk 0:00:00]} 18. Qxb3 {[%clk 0:00:00]}  Bd5 {[%clk 0:00:00]} 19. Bxb5+ {[%clk 0:00:00]}  axb5 {[%clk 0:00:00]} 20. Qxb5+ {[%clk 0:00:00]}  c6 {[%clk 0:00:00]} 21. Qb7 {[%clk 0:00:00]}  Rd8 {[%clk 0:00:00]} 22. a5 {[%clk 0:00:00]}  Bc5 {[%clk 0:00:00]} 23. a6 {[%clk 0:00:00]}  O-O {[%clk 0:00:00]} 24. Ra5 {[%clk 0:00:00]}  Qc3 {[%clk 0:00:00]} 25. Bd2 {[%clk 0:00:00]}  Qxd2 {[%clk 0:00:00]} 26. Rxc5 {[%clk 0:00:00]}  Rb8 {[%clk 0:00:00]} 27. Qd7 {[%clk 0:00:00]}  Qe2 {[%clk 0:00:00]} 28. Ra1 {[%clk 0:00:00]}  Qxa6 {[%clk 0:00:00]} 0-1


[Site "https://www.chess.com"]

[Event "Titled Tuesday Blitz August 16 Early 2022"]
[White "Ianov, Viktor"]
[Black "Taboas Rodriguez, Daniel"]
[WhiteFideId "14102730"]
[BlackFideId "2208466"]
[WhiteElo "2152"]
[BlackElo "2429"]
[Result "1/2-1/2"]
[Round "09"]
[TimeControl "180+2"]
[Date "2022.08.18"]
[WhiteClock "0:00:00"]
[BlackClock "0:00:00"]

1. Nf3 {[%clk 0:00:00]}  Nf6 {[%clk 0:00:00]} 2. g3 {[%clk 0:00:00]}  b6 {[%clk 0:00:00]} 3. Bg2 {[%clk 0:00:00]}  Bb7 {[%clk 0:00:00]} 4. c4 {[%clk 0:00:00]}  g6 {[%clk 0:00:00]} 5. O-O {[%clk 0:00:00]}  Bg7 {[%clk 0:00:00]} 6. Nc3 {[%clk 0:00:00]}  O-O {[%clk 0:00:00]} 7. d3 {[%clk 0:00:00]}  c5 {[%clk 0:00:00]} 8. Bf4 {[%clk 0:00:00]}  Nc6 {[%clk 0:00:00]} 9. Re1 {[%clk 0:00:00]}  d5 {[%clk 0:00:00]} 10. Qc1 {[%clk 0:00:00]}  d4 {[%clk 0:00:00]} 11. Nb5 {[%clk 0:00:00]}  a6 {[%clk 0:00:00]} 12. Na3 {[%clk 0:00:00]}  Re8 {[%clk 0:00:00]} 13. e3 {[%clk 0:00:00]}  Qd7 {[%clk 0:00:00]} 14. exd4 {[%clk 0:00:00]}  Nxd4 {[%clk 0:00:00]} 15. Nxd4 {[%clk 0:00:00]}  cxd4 {[%clk 0:00:00]} 16. Bxb7 {[%clk 0:00:00]}  Qxb7 {[%clk 0:00:00]} 17. Be5 {[%clk 0:00:00]}  Ng4 {[%clk 0:00:00]} 18. Bxg7 {[%clk 0:00:00]}  Kxg7 {[%clk 0:00:00]} 19. Qf4 {[%clk 0:00:00]}  h5 {[%clk 0:00:00]} 20. Qxd4+ {[%clk 0:00:00]}  e5 {[%clk 0:00:00]} 21. Qe4 {[%clk 0:00:00]}  Qd7 {[%clk 0:00:00]} 22. Rad1 {[%clk 0:00:00]}  Rad8 {[%clk 0:00:00]} 23. Nc2 {[%clk 0:00:00]}  f5 {[%clk 0:00:00]} 24. Qe2 {[%clk 0:00:00]}  Qb7 {[%clk 0:00:00]} 25. Ne3 {[%clk 0:00:00]}  Nf6 {[%clk 0:00:00]} 26. b4 {[%clk 0:00:00]}  h4 {[%clk 0:00:00]} 27. Qf1 {[%clk 0:00:00]}  Rh8 {[%clk 0:00:00]} 28. Qg2 {[%clk 0:00:00]}  Qd7 {[%clk 0:00:00]} 29. c5 {[%clk 0:00:00]}  b5 {[%clk 0:00:00]} 30. a4 {[%clk 0:00:00]}  bxa4 {[%clk 0:00:00]} 31. Nc4 {[%clk 0:00:00]}  e4 {[%clk 0:00:00]} 32. Nd6 {[%clk 0:00:00]}  h3 {[%clk 0:00:00]} 33. Qf1 {[%clk 0:00:00]}  Qc6 {[%clk 0:00:00]} 34. dxe4 {[%clk 0:00:00]}  Nxe4 {[%clk 0:00:00]} 35. Nxe4 {[%clk 0:00:00]}  Rxd1 {[%clk 0:00:00]} 36. Rxd1 {[%clk 0:00:00]}  Qxe4 {[%clk 0:00:00]} 37. f3 {[%clk 0:00:00]}  Qe3+ {[%clk 0:00:00]} 38. Qf2 {[%clk 0:00:00]}  Qxf2+ {[%clk 0:00:00]} 39. Kxf2 {[%clk 0:00:00]}  Rb8 {[%clk 0:00:00]} 40. Rd7+ {[%clk 0:00:00]}  Kf6 {[%clk 0:00:00]} 41. Rd6+ {[%clk 0:00:00]}  Ke5 {[%clk 0:00:00]} 42. Rxa6 {[%clk 0:00:00]}  Rxb4 {[%clk 0:00:00]} 43. c6 {[%clk 0:00:00]}  Rb2+ {[%clk 0:00:00]} 44. Ke3 {[%clk 0:00:00]}  Rxh2 {[%clk 0:00:00]} 45. Kd3 {[%clk 0:00:00]}  Rh1 {[%clk 0:00:00]} 46. Rxa4 {[%clk 0:00:00]}  Rc1 {[%clk 0:00:00]} 47. Rh4 {[%clk 0:00:00]}  Rxc6 {[%clk 0:00:00]} 48. Rxh3 {[%clk 0:00:00]}  g5 {[%clk 0:00:00]} 49. Rh8 {[%clk 0:00:00]}  Rd6+ {[%clk 0:00:00]} 50. Ke3 {[%clk 0:00:00]}  f4+ {[%clk 0:00:00]} 51. gxf4+ {[%clk 0:00:00]}  gxf4+ {[%clk 0:00:00]} 52. Ke2 {[%clk 0:00:00]}  Ra6 {[%clk 0:00:00]} 53. Re8+ {[%clk 0:00:00]}  Kf5 {[%clk 0:00:00]} 54. Rf8+ {[%clk 0:00:00]}  Ke5 {[%clk 0:00:00]} 55. Re8+ {[%clk 0:00:00]}  Kf5 {[%clk 0:00:00]} 56. Rf8+ {[%clk 0:00:00]}  Ke5 {[%clk 0:00:00]} 57. Re8+ {[%clk 0:00:00]} 1/2-1/2


[Site "https://www.chess.com"]

[Event "Titled Tuesday Blitz August 16 Early 2022"]
[White "Johnson, Ben"]
[Black "Martin, Lewis"]
[WhiteFideId "2010917"]
[BlackFideId "410551"]
[WhiteElo "2050"]
[BlackElo "2145"]
[Result "0-1"]
[Round "09"]
[TimeControl "180+2"]
[Date "2022.08.18"]
[WhiteClock "0:00:00"]
[BlackClock "0:00:00"]

1. Nf3 {[%clk 0:00:00]}  Nf6 {[%clk 0:00:00]} 2. c4 {[%clk 0:00:00]}  c6 {[%clk 0:00:00]} 3. Nc3 {[%clk 0:00:00]}  d5 {[%clk 0:00:00]} 4. e3 {[%clk 0:00:00]}  e6 {[%clk 0:00:00]} 5. b3 {[%clk 0:00:00]}  Nbd7 {[%clk 0:00:00]} 6. Bb2 {[%clk 0:00:00]}  Be7 {[%clk 0:00:00]} 7. Qc2 {[%clk 0:00:00]}  O-O {[%clk 0:00:00]} 8. Rg1 {[%clk 0:00:00]}  b6 {[%clk 0:00:00]} 9. g4 {[%clk 0:00:00]}  Bb7 {[%clk 0:00:00]} 10. g5 {[%clk 0:00:00]}  Nh5 {[%clk 0:00:00]} 11. Be2 {[%clk 0:00:00]}  g6 {[%clk 0:00:00]} 12. h4 {[%clk 0:00:00]}  c5 {[%clk 0:00:00]} 13. cxd5 {[%clk 0:00:00]}  exd5 {[%clk 0:00:00]} 14. d4 {[%clk 0:00:00]}  f6 {[%clk 0:00:00]} 15. gxf6 {[%clk 0:00:00]}  Bxf6 {[%clk 0:00:00]} 16. Ne5 {[%clk 0:00:00]}  Ng7 {[%clk 0:00:00]} 17. Nxg6 {[%clk 0:00:00]}  hxg6 {[%clk 0:00:00]} 18. Qxg6 {[%clk 0:00:00]}  Qe8 {[%clk 0:00:00]} 19. Qh6 {[%clk 0:00:00]}  cxd4 {[%clk 0:00:00]} 20. Nb5 {[%clk 0:00:00]}  Ne5 {[%clk 0:00:00]} 21. Bxd4 {[%clk 0:00:00]}  Qe7 {[%clk 0:00:00]} 22. f4 {[%clk 0:00:00]}  Nd7 {[%clk 0:00:00]} 23. Bd3 {[%clk 0:00:00]}  Bxd4 {[%clk 0:00:00]} 24. Qh7+ {[%clk 0:00:00]}  Kf7 {[%clk 0:00:00]} 25. Bg6+ {[%clk 0:00:00]}  Kf6 {[%clk 0:00:00]} 26. Nxd4 {[%clk 0:00:00]}  Qxe3+ {[%clk 0:00:00]} 27. Ne2 {[%clk 0:00:00]}  Rh8 {[%clk 0:00:00]} 28. Qxg7+ {[%clk 0:00:00]}  Kxg7 {[%clk 0:00:00]} 29. Bf5+ {[%clk 0:00:00]}  Kf6 {[%clk 0:00:00]} 30. Bxd7 {[%clk 0:00:00]}  Ba6 {[%clk 0:00:00]} 0-1


[Site "https://www.chess.com"]

[Event "Titled Tuesday Blitz August 16 Early 2022"]
[White "Kamsky, Gata"]
[Black "Vakhlamov, Igor L."]
[WhiteFideId "2000024"]
[BlackFideId "24126748"]
[WhiteElo "2666"]
[BlackElo "2401"]
[Result "1-0"]
[Round "09"]
[TimeControl "180+1"]
[Date "2022.08.16"]
[WhiteClock "0:00:31"]
[BlackClock "0:00:23"]

1. d4 {[%clk 0:03:00]}  d5 {[%clk 0:02:59]} 2. Bf4 {[%clk 0:02:59]}  Nf6 {[%clk 0:03:00]} 3. e3 {[%clk 0:02:58]}  Bf5 {[%clk 0:03:00]} 4. c4 {[%clk 0:02:57]}  e6 {[%clk 0:03:00]} 5. Nc3 {[%clk 0:02:56]}  Bb4 {[%clk 0:03:00]} 6. Ne2 {[%clk 0:02:33]}  O-O {[%clk 0:02:50]} 7. a3 {[%clk 0:02:32]}  Bd6 {[%clk 0:02:48]} 8. Bg5 {[%clk 0:02:31]}  dxc4 {[%clk 0:02:41]} 9. e4 {[%clk 0:02:28]}  Bg4 {[%clk 0:02:32]} 10. e5 {[%clk 0:02:26]}  h6 {[%clk 0:02:31]} 11. Bxf6 {[%clk 0:02:25]}  gxf6 {[%clk 0:02:31]} 12. exd6 {[%clk 0:02:26]}  cxd6 {[%clk 0:02:32]} 13. f3 {[%clk 0:02:24]}  Bf5 {[%clk 0:02:28]} 14. Ng3 {[%clk 0:02:24]}  d5 {[%clk 0:02:27]} 15. Nxf5 {[%clk 0:02:24]}  exf5 {[%clk 0:02:28]} 16. Be2 {[%clk 0:02:12]}  Nc6 {[%clk 0:02:28]} 17. Qd2 {[%clk 0:02:10]}  Qd6 {[%clk 0:02:22]} 18. f4 {[%clk 0:02:09]}  Rfe8 {[%clk 0:02:21]} 19. O-O {[%clk 0:02:08]}  Na5 {[%clk 0:02:18]} 20. Rad1 {[%clk 0:01:54]}  Nb3 {[%clk 0:02:17]} 21. Qc2 {[%clk 0:01:54]}  Rad8 {[%clk 0:02:12]} 22. Bf3 {[%clk 0:01:46]}  Qxf4 {[%clk 0:02:08]} 23. Bxd5 {[%clk 0:01:33]}  Nxd4 {[%clk 0:01:41]} 24. Qf2 {[%clk 0:01:04]}  Qxf2+ {[%clk 0:01:28]} 25. Rxf2 {[%clk 0:00:58]}  Ne6 {[%clk 0:01:06]} 26. Rxf5 {[%clk 0:00:56]}  Kg7 {[%clk 0:01:01]} 27. Bxc4 {[%clk 0:00:55]}  Rxd1+ {[%clk 0:00:57]} 28. Nxd1 {[%clk 0:00:55]}  Nd4 {[%clk 0:00:57]} 29. Rf1 {[%clk 0:00:54]}  b5 {[%clk 0:00:58]} 30. Bd3 {[%clk 0:00:53]}  a6 {[%clk 0:00:58]} 31. Nc3 {[%clk 0:00:51]}  Re3 {[%clk 0:00:58]} 32. Rd1 {[%clk 0:00:51]}  Ne6 {[%clk 0:00:58]} 33. Kf2 {[%clk 0:00:50]}  Re5 {[%clk 0:00:58]} 34. Be2 {[%clk 0:00:48]}  Rc5 {[%clk 0:00:41]} 35. Rd6 {[%clk 0:00:46]}  a5 {[%clk 0:00:37]} 36. Bxb5 {[%clk 0:00:44]}  Rf5+ {[%clk 0:00:37]} 37. Ke1 {[%clk 0:00:42]}  Re5+ {[%clk 0:00:36]} 38. Be2 {[%clk 0:00:41]}  Nf4 {[%clk 0:00:31]} 39. g3 {[%clk 0:00:40]}  Ng6 {[%clk 0:00:28]} 40. Kf2 {[%clk 0:00:39]}  Re7 {[%clk 0:00:27]} 41. Rd5 {[%clk 0:00:36]}  Rb7 {[%clk 0:00:25]} 42. Rb5 {[%clk 0:00:36]}  Rc7 {[%clk 0:00:26]} 43. Rxa5 {[%clk 0:00:35]}  Ne5 {[%clk 0:00:27]} 44. Rd5 {[%clk 0:00:35]}  Rb7 {[%clk 0:00:25]} 45. Bb5 {[%clk 0:00:34]}  Rc7 {[%clk 0:00:25]} 46. a4 {[%clk 0:00:34]}  Ng4+ {[%clk 0:00:25]} 47. Ke2 {[%clk 0:00:33]}  Re7+ {[%clk 0:00:24]} 48. Kd2 {[%clk 0:00:32]}  Nxh2 {[%clk 0:00:23]} 49. Be2 {[%clk 0:00:32]}  f5 {[%clk 0:00:22]} 50. Rxf5 {[%clk 0:00:32]}  Rd7+ {[%clk 0:00:22]} 51. Rd5 {[%clk 0:00:32]}  Kg6 {[%clk 0:00:23]} 52. Rxd7 {[%clk 0:00:31]} 1-0


[Site "https://www.chess.com"]